[Event "*** Titled Tuesday Blitz"]
[Site "Chess.com"]
[Date "2019.09.03"]
[Round "4"]
[White "harvsp123"]
[Black "StoreySniper"]
[Result "1/2-1/2"]
[WhiteElo "2534"]
[BlackElo "2363"]
[TimeControl "180+2"]
[EndTime "15:47:23 PDT"]
[Termination "Game drawn by repetition"]

1. d4 {[%clk 0:03:01.9]} 1... g6 {[%clk 0:03:01.9]} 2. c4 {[%clk 0:03:02.7]}
2... Bg7 {[%clk 0:03:03.3]} 3. e4 {[%clk 0:03:04.2]} 3... c5 {[%clk 0:03:04.8]}
4. Nf3 {[%clk 0:03:04.4]} 4... Qa5+ {[%clk 0:03:04]} 5. Nc3 {[%clk 0:03:04.3]}
5... cxd4 {[%clk 0:03:04.3]} 6. Nxd4 {[%clk 0:03:05.2]} 6... Nc6 {[%clk
0:03:05.7]} 7. Be3 {[%clk 0:03:05.4]} 7... Nf6 {[%clk 0:03:05.6]} 8. f3 {[%clk
0:03:01.7]} 8... d6 {[%clk 0:02:57.3]} 9. Qd2 {[%clk 0:03:01.9]} 9... Bd7 {[%clk
0:02:57.3]} 10. Be2 {[%clk 0:03:01.8]} 10... O-O {[%clk 0:02:54.1]} 11. O-O
{[%clk 0:02:53.4]} 11... Rfc8 {[%clk 0:02:54.1]} 12. a3 {[%clk 0:02:53.4]} 12...
Nxd4 {[%clk 0:02:50.7]} 13. Bxd4 {[%clk 0:02:53.5]} 13... Nh5 {[%clk 0:02:51.4]}
14. b4 {[%clk 0:02:46.5]} 14... Bxd4+ {[%clk 0:02:50.5]} 15. Qxd4 {[%clk
0:02:48.4]} 15... Qg5 {[%clk 0:02:48.4]} 16. g3 {[%clk 0:02:17.9]} 16... Nxg3
{[%clk 0:02:42.4]} 17. hxg3 {[%clk 0:02:18.2]} 17... Qxg3+ {[%clk 0:02:42.8]}
18. Kh1 {[%clk 0:02:19.5]} 18... Qh3+ {[%clk 0:02:11.3]} 19. Kg1 {[%clk
0:02:18.1]} 19... Qg3+ {[%clk 0:02:10.5]} 20. Kh1 {[%clk 0:02:19.6]} 20... Qh3+
{[%clk 0:01:58.9]} 21. Kg1 {[%clk 0:02:20.7]} 21... Qg3+ {[%clk 0:02:00.1]}
1/2-1/2

[Event "*** Titled Tuesday Blitz"]
[Site "Chess.com"]
[Date "2019.09.03"]
[Round "4"]
[White "FedaMaster"]
[Black "David_Paravyan"]
[Result "0-1"]
[WhiteElo "2593"]
[BlackElo "2908"]
[TimeControl "180+2"]
[EndTime "15:48:11 PDT"]
[Termination "David_Paravyan won by resignation"]

1. e4 {[%clk 0:03:01.9]} 1... d5 {[%clk 0:02:56.9]} 2. exd5 {[%clk 0:03:02.1]}
2... Qxd5 {[%clk 0:02:58.8]} 3. Nc3 {[%clk 0:03:00.7]} 3... Qd8 {[%clk
0:02:59.8]} 4. d4 {[%clk 0:03:00.7]} 4... Nf6 {[%clk 0:03:00.7]} 5. Nf3 {[%clk
0:02:59.5]} 5... Bg4 {[%clk 0:03:00.6]} 6. h3 {[%clk 0:02:48]} 6... Bxf3 {[%clk
0:03:01.7]} 7. Qxf3 {[%clk 0:02:48.4]} 7... c6 {[%clk 0:03:03]} 8. Be3 {[%clk
0:02:35.6]} 8... e6 {[%clk 0:03:02.9]} 9. Bd3 {[%clk 0:02:10.7]} 9... Nd5 {[%clk
0:02:49.9]} 10. Nxd5 {[%clk 0:02:02.6]} 10... Qxd5 {[%clk 0:02:50.1]} 11. Qg3
{[%clk 0:01:50.8]} 11... g6 {[%clk 0:02:38.1]} 12. c4 {[%clk 0:01:31.5]} 12...
Qa5+ {[%clk 0:02:33.3]} 13. Ke2 {[%clk 0:01:31.6]} 13... Bg7 {[%clk 0:02:31.8]}
14. Qd6 {[%clk 0:01:26.8]} 14... Na6 {[%clk 0:02:31.3]} 15. Bg5 {[%clk
0:00:49.1]} 15... Qxg5 {[%clk 0:02:26.3]} 0-1

[Event "*** Titled Tuesday Blitz"]
[Site "Chess.com"]
[Date "2019.09.03"]
[Round "4"]
[White "SelfishShellfish"]
[Black "MasterKroket"]
[Result "0-1"]
[WhiteElo "2182"]
[BlackElo "2431"]
[TimeControl "180+2"]
[EndTime "15:48:19 PDT"]
[Termination "MasterKroket won by resignation"]

1. e4 {[%clk 0:03:01.9]} 1... c5 {[%clk 0:03:00.4]} 2. Nf3 {[%clk 0:03:02.7]}
2... e6 {[%clk 0:03:01.7]} 3. d4 {[%clk 0:03:00.4]} 3... cxd4 {[%clk 0:03:03.6]}
4. Nxd4 {[%clk 0:03:02.2]} 4... Nc6 {[%clk 0:03:05.1]} 5. Nc3 {[%clk 0:03:01.7]}
5... Qc7 {[%clk 0:03:06.4]} 6. Be2 {[%clk 0:03:02.8]} 6... a6 {[%clk 0:03:07.1]}
7. O-O {[%clk 0:03:03.8]} 7... Nf6 {[%clk 0:03:08.5]} 8. Kh1 {[%clk 0:03:02.7]}
8... d6 {[%clk 0:03:08.8]} 9. Be3 {[%clk 0:03:03.2]} 9... Bd7 {[%clk 0:03:09.5]}
10. f4 {[%clk 0:03:04.2]} 10... Nxd4 {[%clk 0:03:08.4]} 11. Qxd4 {[%clk
0:03:00.4]} 11... Bc6 {[%clk 0:03:08]} 12. f5 {[%clk 0:02:45.3]} 12... e5 {[%clk
0:03:07.8]} 13. Qd3 {[%clk 0:02:44.5]} 13... h6 {[%clk 0:03:03.8]} 14. a4 {[%clk
0:02:35.9]} 14... b6 {[%clk 0:02:54.7]} 15. Ra3 {[%clk 0:02:13.3]} 15... Be7
{[%clk 0:02:26.9]} 16. Rb3 {[%clk 0:02:13.5]} 16... Nd7 {[%clk 0:02:27.4]} 17.
Nd5 {[%clk 0:02:14.3]} 17... Bxd5 {[%clk 0:02:28.7]} 18. Qxd5 {[%clk 0:02:16.2]}
18... O-O {[%clk 0:02:25.9]} 19. Rc3 {[%clk 0:02:14]} 19... Qb8 {[%clk 0:02:15]}
20. Bc4 {[%clk 0:01:59.4]} 20... Nf6 {[%clk 0:02:10.5]} 21. Qc6 {[%clk
0:02:00.4]} 21... Rc8 {[%clk 0:02:05.6]} 22. Qxc8+ {[%clk 0:01:41.2]} 22... Qxc8
{[%clk 0:02:05.6]} 23. Bxf7+ {[%clk 0:01:42.2]} 23... Kxf7 {[%clk 0:02:07.5]}
24. Rxc8 {[%clk 0:01:43.2]} 24... Rxc8 {[%clk 0:02:09.4]} 25. Bxb6 {[%clk
0:01:42.1]} 25... Rxc2 {[%clk 0:02:10.4]} 26. b4 {[%clk 0:01:39]} 26... Nxe4
{[%clk 0:02:10.8]} 27. b5 {[%clk 0:01:39.3]} 27... axb5 {[%clk 0:02:12]} 28. a5
{[%clk 0:01:40.2]} 28... Ra2 {[%clk 0:02:13]} 0-1

[Event "*** Titled Tuesday Blitz"]
[Site "Chess.com"]
[Date "2019.09.03"]
[Round "4"]
[White "JAN2404"]
[Black "dawnrule"]
[Result "1-0"]
[WhiteElo "1691"]
[BlackElo "2383"]
[TimeControl "180+2"]
[EndTime "15:49:31 PDT"]
[Termination "JAN2404 won by resignation"]

1. c4 {[%clk 0:02:55.6]} 1... e5 {[%clk 0:02:58.3]} 2. Nc3 {[%clk 0:02:52.9]}
2... Nc6 {[%clk 0:02:58.2]} 3. Nf3 {[%clk 0:02:54.3]} 3... f5 {[%clk 0:02:58.8]}
4. g3 {[%clk 0:02:54.6]} 4... Nf6 {[%clk 0:02:59.8]} 5. d3 {[%clk 0:02:55]} 5...
Bb4 {[%clk 0:02:59.7]} 6. Bg2 {[%clk 0:02:54.6]} 6... O-O {[%clk 0:03:00.4]} 7.
O-O {[%clk 0:02:54.8]} 7... Bxc3 {[%clk 0:03:00.7]} 8. bxc3 {[%clk 0:02:56.7]}
8... d6 {[%clk 0:02:59.8]} 9. d4 {[%clk 0:02:55.9]} 9... Qe8 {[%clk 0:02:59.1]}
10. e3 {[%clk 0:02:46.2]} 10... f4 {[%clk 0:02:58.1]} 11. Re1 {[%clk 0:02:46.4]}
11... e4 {[%clk 0:02:56.2]} 12. exf4 {[%clk 0:02:42.1]} 12... Bg4 {[%clk
0:02:49.3]} 13. h3 {[%clk 0:02:42.1]} 13... Bh5 {[%clk 0:02:32.1]} 14. g4 {[%clk
0:02:40.4]} 14... Bf7 {[%clk 0:02:32.8]} 15. Nd2 {[%clk 0:02:37.3]} 15... Na5
{[%clk 0:02:24.3]} 16. Nxe4 {[%clk 0:02:23.2]} 16... Nxe4 {[%clk 0:02:24.6]} 17.
Bxe4 {[%clk 0:02:23.4]} 17... Qd7 {[%clk 0:02:26.1]} 18. Bf5 {[%clk 0:02:04.2]}
18... Qc6 {[%clk 0:02:23.5]} 19. Qd3 {[%clk 0:01:52.8]} 19... g6 {[%clk
0:02:18.8]} 20. Be4 {[%clk 0:01:52.9]} 20... Qxc4 {[%clk 0:02:12]} 21. Qxc4
{[%clk 0:01:50]} 21... Bxc4 {[%clk 0:02:13.9]} 22. f5 {[%clk 0:01:48]} 22...
Rae8 {[%clk 0:02:07.3]} 23. Bh6 {[%clk 0:01:46.3]} 23... Rf6 {[%clk 0:01:50.9]}
24. g5 {[%clk 0:01:32.8]} 24... Rxe4 {[%clk 0:01:44.9]} 25. Rxe4 {[%clk
0:01:31.1]} 25... Rxf5 {[%clk 0:01:44.4]} 26. Re8+ {[%clk 0:01:31.7]} 26... Kf7
{[%clk 0:01:45.3]} 27. Rf8+ {[%clk 0:01:32]} 27... Ke6 {[%clk 0:01:46.2]} 28.
Re1+ {[%clk 0:01:32.9]} 28... Kd7 {[%clk 0:01:40.8]} 29. Rxf5 {[%clk 0:01:14.4]}
29... gxf5 {[%clk 0:01:42.7]} 30. h4 {[%clk 0:01:15.7]} 30... Bxa2 {[%clk
0:01:42.1]} 31. Ra1 {[%clk 0:01:13.9]} 1-0

[Event "*** Titled Tuesday Blitz"]
[Site "Chess.com"]
[Date "2019.09.03"]
[Round "4"]
[White "TomPolgar"]
[Black "ulises2013"]
[Result "0-1"]
[WhiteElo "2293"]
[BlackElo "2502"]
[TimeControl "180+2"]
[EndTime "15:49:43 PDT"]
[Termination "ulises2013 won on time"]

1. e4 {[%clk 0:03:01.9]} 1... g6 {[%clk 0:03:00.7]} 2. d4 {[%clk 0:03:02]} 2...
Bg7 {[%clk 0:03:00.9]} 3. Nc3 {[%clk 0:03:03.5]} 3... c5 {[%clk 0:03:01.7]} 4.
d5 {[%clk 0:02:40.6]} 4... d6 {[%clk 0:03:02.4]} 5. Nf3 {[%clk 0:02:38.7]} 5...
Nf6 {[%clk 0:03:00.4]} 6. Bd3 {[%clk 0:02:32.1]} 6... O-O {[%clk 0:02:59.4]} 7.
O-O {[%clk 0:02:33]} 7... e6 {[%clk 0:02:55.2]} 8. Bg5 {[%clk 0:02:24.3]} 8...
h6 {[%clk 0:02:50.6]} 9. Bh4 {[%clk 0:02:25.1]} 9... g5 {[%clk 0:02:48.5]} 10.
Bg3 {[%clk 0:02:26]} 10... e5 {[%clk 0:02:49.8]} 11. Nd2 {[%clk 0:02:20.7]}
11... a6 {[%clk 0:02:35.1]} 12. a4 {[%clk 0:02:21.2]} 12... Nbd7 {[%clk
0:02:35.2]} 13. Nc4 {[%clk 0:02:15.3]} 13... Nb6 {[%clk 0:02:34.4]} 14. f3
{[%clk 0:01:22.4]} 14... Nh5 {[%clk 0:02:28.3]} 15. Bf2 {[%clk 0:00:54.4]} 15...
Nf4 {[%clk 0:02:25.2]} 16. a5 {[%clk 0:00:48]} 16... Nxc4 {[%clk 0:02:25.2]} 17.
Bxc4 {[%clk 0:00:48.5]} 17... Bd7 {[%clk 0:02:26]} 18. Be3 {[%clk 0:00:38.7]}
18... h5 {[%clk 0:02:21.1]} 19. g3 {[%clk 0:00:35.9]} 19... Ng6 {[%clk
0:02:19.7]} 20. Qd2 {[%clk 0:00:33.7]} 20... Bh6 {[%clk 0:02:15.8]} 21. Kg2
{[%clk 0:00:19.2]} 21... Kh7 {[%clk 0:02:16.5]} 22. h4 {[%clk 0:00:17.5]} 22...
Nf4+ {[%clk 0:02:05.3]} 23. Bxf4 {[%clk 0:00:04.1]} 23... gxf4 {[%clk
0:02:05.9]} 0-1

[Event "*** Titled Tuesday Blitz"]
[Site "Chess.com"]
[Date "2019.09.03"]
[Round "4"]
[White "GMJimKnopf"]
[Black "adriangschnitzer"]
[Result "1-0"]
[WhiteElo "2731"]
[BlackElo "2546"]
[TimeControl "180+2"]
[EndTime "15:49:49 PDT"]
[Termination "GMJimKnopf won by checkmate"]

1. b3 {[%clk 0:02:50]} 1... e5 {[%clk 0:03:00.1]} 2. Bb2 {[%clk 0:02:51.9]} 2...
Nc6 {[%clk 0:03:00.7]} 3. e3 {[%clk 0:02:53.2]} 3... Nf6 {[%clk 0:03:02.2]} 4.
Bb5 {[%clk 0:02:51.5]} 4... Bd6 {[%clk 0:03:02.5]} 5. Nf3 {[%clk 0:02:52.7]}
5... Qe7 {[%clk 0:03:00.5]} 6. O-O {[%clk 0:02:53.6]} 6... O-O {[%clk 0:03:00]}
7. d3 {[%clk 0:02:51.2]} 7... a6 {[%clk 0:02:58.7]} 8. Bxc6 {[%clk 0:02:51.6]}
8... dxc6 {[%clk 0:03:00.6]} 9. Nbd2 {[%clk 0:02:52]} 9... Bg4 {[%clk
0:02:56.3]} 10. h3 {[%clk 0:02:53.3]} 10... Bh5 {[%clk 0:02:56.4]} 11. Qe2
{[%clk 0:02:52.9]} 11... Rfe8 {[%clk 0:02:55]} 12. Rad1 {[%clk 0:02:51.4]} 12...
Rad8 {[%clk 0:02:52.1]} 13. Nc4 {[%clk 0:02:47.9]} 13... e4 {[%clk 0:02:48.6]}
14. dxe4 {[%clk 0:02:45.9]} 14... Nxe4 {[%clk 0:02:49.6]} 15. Rd4 {[%clk
0:02:21.4]} 15... Ng5 {[%clk 0:02:44.6]} 16. g4 {[%clk 0:02:19.1]} 16... Nxh3+
{[%clk 0:02:34.9]} 17. Kg2 {[%clk 0:02:20.9]} 17... c5 {[%clk 0:02:19.9]} 18.
Kxh3 {[%clk 0:01:12]} 18... cxd4 {[%clk 0:02:17.6]} 19. gxh5 {[%clk 0:01:03]}
19... b5 {[%clk 0:02:11]} 20. Nxd6 {[%clk 0:01:03.5]} 20... Rxd6 {[%clk
0:02:12.2]} 21. Nxd4 {[%clk 0:00:59.6]} 21... Qd7+ {[%clk 0:02:08.4]} 22. Qg4
{[%clk 0:01:00.5]} 22... Qxg4+ {[%clk 0:01:51.2]} 23. Kxg4 {[%clk 0:01:02.4]}
23... c5 {[%clk 0:01:52.4]} 24. Nf5 {[%clk 0:01:03.7]} 24... Rd2 {[%clk
0:01:51.8]} 25. Bxg7 {[%clk 0:01:03.9]} 25... Rxc2 {[%clk 0:01:47]} 26. Kf3
{[%clk 0:01:02.1]} 26... f6 {[%clk 0:01:31.5]} 27. Bxf6 {[%clk 0:01:00.8]} 27...
Rf8 {[%clk 0:01:29.8]} 28. Nh6# {[%clk 0:01:02.1]} 1-0

[Event "*** Titled Tuesday Blitz"]
[Site "Chess.com"]
[Date "2019.09.03"]
[Round "4"]
[White "BASSU1"]
[Black "gmcorrales"]
[Result "1-0"]
[WhiteElo "2545"]
[BlackElo "2703"]
[TimeControl "180+2"]
[EndTime "15:49:54 PDT"]
[Termination "BASSU1 won by resignation"]

1. e4 {[%clk 0:03:01.9]} 1... d5 {[%clk 0:03:00.3]} 2. exd5 {[%clk 0:03:02.9]}
2... Qxd5 {[%clk 0:03:02.2]} 3. Nc3 {[%clk 0:02:59.9]} 3... Qd6 {[%clk
0:03:02.8]} 4. Nf3 {[%clk 0:03:00.7]} 4... Nf6 {[%clk 0:03:03.3]} 5. d4 {[%clk
0:02:56.1]} 5... a6 {[%clk 0:03:03.9]} 6. Bc4 {[%clk 0:02:54]} 6... b5 {[%clk
0:03:03.6]} 7. Bb3 {[%clk 0:02:54.3]} 7... Bb7 {[%clk 0:03:03.8]} 8. O-O {[%clk
0:02:52.3]} 8... Nbd7 {[%clk 0:03:03.9]} 9. Ng5 {[%clk 0:02:44.1]} 9... e6
{[%clk 0:03:04.1]} 10. Re1 {[%clk 0:02:44]} 10... Be7 {[%clk 0:02:37.7]} 11.
Nxe6 {[%clk 0:02:37.4]} 11... fxe6 {[%clk 0:02:37]} 12. Rxe6 {[%clk 0:02:38.1]}
12... Qb4 {[%clk 0:02:33.3]} 13. a3 {[%clk 0:02:34.1]} 13... Qa5 {[%clk
0:02:33.5]} 14. Bd2 {[%clk 0:02:25.5]} 14... b4 {[%clk 0:02:26.1]} 15. axb4
{[%clk 0:02:23.6]} 15... Qf5 {[%clk 0:02:17]} 16. Qe2 {[%clk 0:02:07]} 16... Ng8
{[%clk 0:02:03.1]} 17. Ra5 {[%clk 0:01:38.5]} 17... Qf8 {[%clk 0:01:57.8]} 18.
Bd5 {[%clk 0:01:21.9]} 18... c6 {[%clk 0:01:55.9]} 19. Bxc6 {[%clk 0:01:18]}
19... Bxc6 {[%clk 0:01:57]} 20. Rxc6 {[%clk 0:01:19.9]} 20... Ngf6 {[%clk
0:01:45]} 21. Rcxa6 {[%clk 0:01:16.2]} 21... Rd8 {[%clk 0:01:45.9]} 22. d5
{[%clk 0:01:13.4]} 22... Kf7 {[%clk 0:01:44.6]} 23. Qe6+ {[%clk 0:01:14]} 23...
Kg6 {[%clk 0:01:45.7]} 24. d6 {[%clk 0:01:15.5]} 24... Re8 {[%clk 0:01:03.8]}
25. Rg5+ {[%clk 0:01:12.7]} 25... Kh6 {[%clk 0:01:03.3]} 26. Qh3+ {[%clk
0:01:13.7]} 1-0

[Event "*** Titled Tuesday Blitz"]
[Site "Chess.com"]
[Date "2019.09.03"]
[Round "4"]
[White "Witik"]
[Black "Fighterman91"]
[Result "0-1"]
[WhiteElo "2547"]
[BlackElo "2739"]
[TimeControl "180+2"]
[EndTime "15:50:05 PDT"]
[Termination "Fighterman91 won by resignation"]

1. d4 {[%clk 0:02:59.7]} 1... Nf6 {[%clk 0:03:00.7]} 2. Bf4 {[%clk 0:02:59]}
2... c5 {[%clk 0:02:58.3]} 3. e3 {[%clk 0:02:59.8]} 3... e6 {[%clk 0:02:57.1]}
4. c3 {[%clk 0:02:57.7]} 4... Nc6 {[%clk 0:02:57.4]} 5. Nd2 {[%clk 0:02:58.4]}
5... Be7 {[%clk 0:02:58.9]} 6. Bd3 {[%clk 0:02:57.3]} 6... d5 {[%clk 0:02:59.6]}
7. h3 {[%clk 0:02:56.1]} 7... O-O {[%clk 0:03:00.2]} 8. Ngf3 {[%clk 0:02:57]}
8... Bd6 {[%clk 0:03:00.4]} 9. Ne5 {[%clk 0:02:52.7]} 9... Bxe5 {[%clk
0:03:00.2]} 10. dxe5 {[%clk 0:02:53]} 10... Nd7 {[%clk 0:03:01.4]} 11. Nf3
{[%clk 0:02:44.4]} 11... c4 {[%clk 0:02:58.4]} 12. Bxh7+ {[%clk 0:02:31]} 12...
Kxh7 {[%clk 0:02:59.3]} 13. Ng5+ {[%clk 0:02:31.9]} 13... Kg6 {[%clk 0:03:00.4]}
14. Qc2+ {[%clk 0:01:56.5]} 14... f5 {[%clk 0:03:01.5]} 15. Nxe6 {[%clk
0:01:54.8]} 15... Qe7 {[%clk 0:03:01.6]} 16. Nxf8+ {[%clk 0:01:52.8]} 16... Nxf8
{[%clk 0:03:01.3]} 17. g4 {[%clk 0:01:39.3]} 17... Nxe5 {[%clk 0:03:01.7]} 18.
gxf5+ {[%clk 0:01:40]} 18... Kf7 {[%clk 0:03:02.9]} 19. O-O-O {[%clk 0:00:55.4]}
19... Nd3+ {[%clk 0:03:03.8]} 20. Rxd3 {[%clk 0:00:56.4]} 20... Bxf5 {[%clk
0:03:04.8]} 21. Qe2 {[%clk 0:00:32.3]} 21... cxd3 {[%clk 0:03:00.2]} 22. Qh5+
{[%clk 0:00:33.1]} 22... g6 {[%clk 0:03:01.2]} 23. Qh6 {[%clk 0:00:30.5]} 23...
d2+ {[%clk 0:03:02.1]} 24. Kxd2 {[%clk 0:00:30.9]} 24... Qe4 {[%clk 0:03:03.3]}
25. Rc1 {[%clk 0:00:31.9]} 25... Rd8 {[%clk 0:02:52.4]} 26. Qh8 {[%clk
0:00:25.1]} 26... Qf3 {[%clk 0:02:37.2]} 27. Re1 {[%clk 0:00:09.8]} 27... Qe4
{[%clk 0:02:28.5]} 28. Rc1 {[%clk 0:00:09]} 28... Ne6 {[%clk 0:02:26]} 29. Qh7+
{[%clk 0:00:09.7]} 29... Ng7 {[%clk 0:02:27.5]} 30. Bh6 {[%clk 0:00:10.7]} 30...
Rg8 {[%clk 0:02:22]} 31. Bf4 {[%clk 0:00:10.6]} 31... g5 {[%clk 0:02:21.8]} 0-1

[Event "*** Titled Tuesday Blitz"]
[Site "Chess.com"]
[Date "2019.09.03"]
[Round "4"]
[White "riconaipe"]
[Black "Cukiero"]
[Result "1-0"]
[WhiteElo "2579"]
[BlackElo "2408"]
[TimeControl "180+2"]
[EndTime "15:50:20 PDT"]
[Termination "riconaipe won by resignation"]

1. d4 {[%clk 0:03:01.9]} 1... Nf6 {[%clk 0:03:00.7]} 2. Nf3 {[%clk 0:02:39.9]}
2... b6 {[%clk 0:02:47.2]} 3. c4 {[%clk 0:02:39.8]} 3... e6 {[%clk 0:02:46.2]}
4. Nc3 {[%clk 0:02:41]} 4... Bb7 {[%clk 0:02:46.7]} 5. e3 {[%clk 0:02:42.2]}
5... Bb4 {[%clk 0:02:46.6]} 6. Bd3 {[%clk 0:02:43.2]} 6... c5 {[%clk 0:02:43.5]}
7. O-O {[%clk 0:02:44.2]} 7... O-O {[%clk 0:02:42.3]} 8. d5 {[%clk 0:02:40]}
8... Bxc3 {[%clk 0:02:41.5]} 9. bxc3 {[%clk 0:02:40.4]} 9... exd5 {[%clk
0:02:33.6]} 10. cxd5 {[%clk 0:02:41.6]} 10... Bxd5 {[%clk 0:02:24]} 11. Ng5
{[%clk 0:02:38.2]} 11... Bc6 {[%clk 0:02:08.8]} 12. e4 {[%clk 0:02:36.5]} 12...
h6 {[%clk 0:02:07.8]} 13. e5 {[%clk 0:02:35.9]} 13... hxg5 {[%clk 0:01:06.6]}
14. Bxg5 {[%clk 0:02:35.3]} 14... Qc7 {[%clk 0:00:48.5]} 15. exf6 {[%clk
0:02:18.3]} 15... g6 {[%clk 0:00:48.3]} 16. Qg4 {[%clk 0:02:17.1]} 16... Re8
{[%clk 0:00:34.5]} 17. Bf4 {[%clk 0:02:07.5]} 17... Qd8 {[%clk 0:00:28.7]} 18.
Rfe1 {[%clk 0:01:41.8]} 18... Na6 {[%clk 0:00:28.2]} 19. Rxe8+ {[%clk
0:01:30.8]} 19... Qxe8 {[%clk 0:00:29.1]} 20. Bxa6 {[%clk 0:01:32.1]} 20... Qe4
{[%clk 0:00:27.4]} 21. Bf1 {[%clk 0:01:30.7]} 21... Re8 {[%clk 0:00:27.6]} 22.
Qh4 {[%clk 0:01:25.7]} 22... Qf5 {[%clk 0:00:27.5]} 23. Bg5 {[%clk 0:01:16.7]}
1-0

[Event "*** Titled Tuesday Blitz"]
[Site "Chess.com"]
[Date "2019.09.03"]
[Round "4"]
[White "Svet99"]
[Black "slowdgehammer"]
[Result "1-0"]
[WhiteElo "2153"]
[BlackElo "2411"]
[TimeControl "180+2"]
[EndTime "15:50:30 PDT"]
[Termination "Svet99 won by resignation"]

1. Nf3 {[%clk 0:03:01.9]} 1... c5 {[%clk 0:03:00.1]} 2. c4 {[%clk 0:03:02.1]}
2... Nc6 {[%clk 0:02:54.7]} 3. Nc3 {[%clk 0:03:02.4]} 3... g6 {[%clk 0:02:53.8]}
4. g3 {[%clk 0:03:00.2]} 4... Bg7 {[%clk 0:02:53.6]} 5. Bg2 {[%clk 0:03:01.2]}
5... e5 {[%clk 0:02:54.1]} 6. O-O {[%clk 0:03:01.4]} 6... Nge7 {[%clk
0:02:54.8]} 7. d3 {[%clk 0:03:01.8]} 7... d6 {[%clk 0:02:55.1]} 8. Ne1 {[%clk
0:03:02.8]} 8... Be6 {[%clk 0:02:53.1]} 9. Nc2 {[%clk 0:03:03.4]} 9... d5 {[%clk
0:02:41.3]} 10. cxd5 {[%clk 0:03:03.7]} 10... Nxd5 {[%clk 0:02:43.2]} 11. Ne4
{[%clk 0:03:01.7]} 11... Qe7 {[%clk 0:01:42.5]} 12. Ne3 {[%clk 0:02:47.4]} 12...
Nxe3 {[%clk 0:01:06]} 13. Bxe3 {[%clk 0:02:46.7]} 13... Nd4 {[%clk 0:01:07.5]}
14. Rc1 {[%clk 0:02:06.2]} 14... Rc8 {[%clk 0:01:03.5]} 15. Bxd4 {[%clk
0:01:55.1]} 15... exd4 {[%clk 0:01:02.8]} 16. Qa4+ {[%clk 0:01:55.5]} 16... Kf8
{[%clk 0:00:26.6]} 17. Qxa7 {[%clk 0:01:52.1]} 17... Bd5 {[%clk 0:00:20.4]} 18.
Rxc5 {[%clk 0:01:39.2]} 18... Rxc5 {[%clk 0:00:18.4]} 19. Qxc5 {[%clk
0:01:38.9]} 19... Bxe4 {[%clk 0:00:17.7]} 20. Qxe7+ {[%clk 0:01:32]} 20... Kxe7
{[%clk 0:00:19.6]} 21. Bxe4 {[%clk 0:01:32.8]} 21... Rc8 {[%clk 0:00:21.1]} 22.
Bxb7 {[%clk 0:01:32.3]} 22... Rb8 {[%clk 0:00:22.4]} 23. Bf3 {[%clk 0:01:28.9]}
23... Rxb2 {[%clk 0:00:23.8]} 24. Ra1 {[%clk 0:01:29.4]} 24... Rb5 {[%clk
0:00:18.6]} 25. a4 {[%clk 0:01:28.4]} 25... Ra5 {[%clk 0:00:19.9]} 26. Bc6
{[%clk 0:01:29.1]} 26... Kd6 {[%clk 0:00:21]} 27. Bb5 {[%clk 0:01:30]} 27... Bh6
{[%clk 0:00:22.4]} 28. Kg2 {[%clk 0:01:28.6]} 28... Bd2 {[%clk 0:00:23.6]} 29.
Ra2 {[%clk 0:01:29.4]} 29... Ra7 {[%clk 0:00:25.1]} 30. Rxd2 {[%clk 0:01:30.1]}
1-0

[Event "*** Titled Tuesday Blitz"]
[Site "Chess.com"]
[Date "2019.09.03"]
[Round "4"]
[White "tteshan"]
[Black "RU_B9"]
[Result "1-0"]
[WhiteElo "2181"]
[BlackElo "1708"]
[TimeControl "180+2"]
[EndTime "15:50:36 PDT"]
[Termination "tteshan won on time"]

1. e4 {[%clk 0:03:01.9]} 1... c5 {[%clk 0:03:00.8]} 2. a3 {[%clk 0:02:59.1]}
2... g6 {[%clk 0:03:00.8]} 3. h4 {[%clk 0:02:58.1]} 3... Nc6 {[%clk 0:02:54.6]}
4. h5 {[%clk 0:02:58.6]} 4... Bg7 {[%clk 0:02:55.1]} 5. d3 {[%clk 0:02:58.4]}
5... d6 {[%clk 0:02:46.7]} 6. h6 {[%clk 0:02:58.8]} 6... Bf6 {[%clk 0:02:41.9]}
7. Be2 {[%clk 0:02:56.8]} 7... e6 {[%clk 0:02:08.1]} 8. c3 {[%clk 0:02:53.4]}
8... Nge7 {[%clk 0:02:03.3]} 9. Nf3 {[%clk 0:02:51.4]} 9... b6 {[%clk
0:01:55.6]} 10. g4 {[%clk 0:02:51.4]} 10... O-O {[%clk 0:01:48.9]} 11. Nbd2
{[%clk 0:02:45.8]} 11... d5 {[%clk 0:01:48]} 12. g5 {[%clk 0:02:37.2]} 12... Bh8
{[%clk 0:01:47.7]} 13. Nh4 {[%clk 0:02:35.3]} 13... dxe4 {[%clk 0:01:25.2]} 14.
Nxe4 {[%clk 0:02:33.6]} 14... Nf5 {[%clk 0:01:02.6]} 15. Nxf5 {[%clk 0:02:31.5]}
15... exf5 {[%clk 0:01:02.7]} 16. Ng3 {[%clk 0:02:30.3]} 16... Ne5 {[%clk
0:00:59]} 17. Bf4 {[%clk 0:02:30.8]} 17... Bb7 {[%clk 0:00:56.8]} 18. O-O {[%clk
0:02:26.3]} 18... Qd5 {[%clk 0:00:51]} 19. f3 {[%clk 0:02:26.7]} 19... Rad8
{[%clk 0:00:35.4]} 20. Qa4 {[%clk 0:02:24.1]} 20... Nxd3 {[%clk 0:00:29.4]} 21.
Bxd3 {[%clk 0:01:57.6]} 21... Qxd3 {[%clk 0:00:29.2]} 22. Qxa7 {[%clk
0:01:52.2]} 22... Bxf3 {[%clk 0:00:26.2]} 23. Qxb6 {[%clk 0:01:53.4]} 23... Rfe8
{[%clk 0:00:14.2]} 24. Qxc5 {[%clk 0:01:48.5]} 24... Be4 {[%clk 0:00:08.5]} 25.
Rae1 {[%clk 0:01:43.2]} 25... Rc8 {[%clk 0:00:05.5]} 26. Qf2 {[%clk 0:01:42.6]}
26... Red8 {[%clk 0:00:04.9]} 27. Re3 {[%clk 0:01:39]} 27... Qc4 {[%clk
0:00:05]} 28. Nxe4 {[%clk 0:01:38.5]} 28... fxe4 {[%clk 0:00:05.2]} 29. Rfe1
{[%clk 0:01:40.4]} 1-0